{"text_format":"3","workbook":"xlsx","n_sheets":2,"sheets":["Расписание проекта","Сведения"],"not_rendered":{"images":1,"defined_names":7},"read":"whole","date_system":"1900"}

{"sheet":"Расписание проекта","index":0,"n_rows":33,"n_cols":64,"rows_kept":33,"merged":[[2,2,2,3],[2,4,2,5],[3,2,3,3],[3,8,3,14],[3,15,3,21],[3,22,3,28],[3,29,3,35],[3,36,3,42],[3,43,3,49],[3,50,3,56],[3,57,3,63],[4,1,4,6]]}
["Составьте на этом листе расписание проекта.\nВведите название проекта в ячейке B1. \nСведения о том, как использовать этот лист, включая инструкции для средств чтения с экрана и информацию об авторе книги, приведены на листе «Об этой книге».\nДальнейшие инструкции вы найдете в расположенных ниже ячейках столбца A.","НАЗВАНИЕ ПРОЕКТА",{"$nulls":6},"ПРОСТАЯ ДИАГРАММА ГАНТА от Vertex42.com"]
["Введите название компании в ячейке B2.","Название компании",{"$nulls":6},"https://www.vertex42.com/ExcelTemplates/simple-gantt-chart.html"]
["Введите имя Руководитель проекта в ячейке B3. Введите дату началo проекта в ячейке E3. В ячейке C3 находится надпись «Начало проекта».","Руководитель проекта","Начало проекта:",null,{"$f":"TODAY()","v":"2019-03-29"}]
["Номер отображаемой неделя в ячейке E4 указывает, с какой недели начинается расписание проекта в ячейке I4. Считается, что дата начала проекта относится к неделе 1. Чтобы изменить отображаемую неделю, просто введите новый номер недели в ячейке E4.\nДата начала каждой недели (начиная с отображаемой недели, указанной в ячейке E4) указывается в ячейке I4 и рассчитывается автоматически. В этом представлении отображаются 8 недель в ячейках от I4 до BF4.\nНе следует редактировать эти ячейки.\nВ ячейке C4 находится надпись \"Отображаемая неделя\".",null,"Отображаемая неделя:",null,1,{"$nulls":3},{"$f":"I5","v":"2019-03-25"},{"$nulls":6},{"$f":"P5","v":"2019-04-01"},{"$nulls":6},{"$f":"W5","v":"2019-04-08"},{"$nulls":6},{"$f":"AD5","v":"2019-04-15"},{"$nulls":6},{"$f":"AK5","v":"2019-04-22"},{"$nulls":6},{"$f":"AR5","v":"2019-04-29"},{"$nulls":6},{"$f":"AY5","v":"2019-05-06"},{"$nulls":6},{"$f":"BF5","v":"2019-05-13"}]
["Ячейки с I5 по BL5 содержат дни недели, указанной в блоке ячеек над ними, и вычисляются автоматически.\nНе следует редактировать эти ячейки.\nТекущая дата выделена красным прямоугольником (код цвета — #AD3815), который начинается с этой даты в строке 5 и охватывает весь столбец до конца расписания проекта.",{"$nulls":7},{"$f":"Начало_проекта-WEEKDAY(Начало_проекта,1)+2+7*(Отображение_недели-1)","v":"2019-03-25"},{"$f":"I5+1","v":"2019-03-26"},{"$f":"J5+1","v":"2019-03-27"},"2019-03-28","2019-03-29","2019-03-30","2019-03-31",{"$f":"O5+1","v":"2019-04-01"},{"$f":"P5+1","v":"2019-04-02"},"2019-04-03","2019-04-04","2019-04-05","2019-04-06","2019-04-07",{"$f":"V5+1","v":"2019-04-08"},{"$f":"W5+1","v":"2019-04-09"},"2019-04-10","2019-04-11","2019-04-12","2019-04-13","2019-04-14",{"$f":"AC5+1","v":"2019-04-15"},{"$f":"AD5+1","v":"2019-04-16"},"2019-04-17","2019-04-18","2019-04-19","2019-04-20","2019-04-21",{"$f":"AJ5+1","v":"2019-04-22"},{"$f":"AK5+1","v":"2019-04-23"},"2019-04-24","2019-04-25","2019-04-26","2019-04-27","2019-04-28",{"$f":"AQ5+1","v":"2019-04-29"},{"$f":"AR5+1","v":"2019-04-30"},"2019-05-01","2019-05-02","2019-05-03","2019-05-04","2019-05-05",{"$f":"AX5+1","v":"2019-05-06"},{"$f":"AY5+1","v":"2019-05-07"},{"$f":"AZ5+1","v":"2019-05-08"},"2019-05-09","2019-05-10","2019-05-11","2019-05-12",{"$f":"BE5+1","v":"2019-05-13"},{"$f":"BF5+1","v":"2019-05-14"},{"$f":"BG5+1","v":"2019-05-15"},"2019-05-16","2019-05-17","2019-05-18","2019-05-19"]
["Эта строка содержит заголовки для расписания проекта, которое следует под ними. \nЧтобы прослушать содержимое, переходите между ячейками B6–BL6. Первые буквы дней недели для даты, указанной над этим заголовком, представлены в ячейках с I6 по BL6.\nВсе диаграммы графика проекта создаются автоматически с учетом введенных дат начала и завершения и с использованием условного форматирования.\nНе редактируйте содержимое ячеек в столбцах после столбца I, начиная с ячейки I7.","ЗАДАЧА","КОМУ\nНАЗНАЧЕНО","ВЫПОЛНЕНО","НАЧАЛО","ЗАВЕРШЕНИЕ",null,"ДНИ",{"$f":"LEFT(TEXT(I5,\"ДДД\"),1)","v":"П"},"В","С","Ч","П","С","В","П","В","С","Ч","П","С","В","П","В","С","Ч","П","С","В","П","В","С","Ч","П","С","В","П","В","С","Ч",{"$f":"LEFT(TEXT(AO5,\"ДДД\"),1)","v":"П"},"С","В","П","В","С","Ч","П","С","В","П","В","С","Ч","П","С","В","П","В","С","Ч","П","С","В"]
["Не удаляйте эту строку. Эта строка скрыта, чтобы защитить формулу, которая используется для выделения текущей даты в расписании проекта. ",{"$nulls":6},{"$f":"IF(OR(ISBLANK(начало_выполнения_задачи),ISBLANK(завершение_выполнения_задачи)),\"\",завершение_выполнения_задачи-начало_выполнения_задачи+1)","v":""}]
["Ячейка B8 содержит пример заголовка фазы 1. \nВведите новый заголовок в ячейке B8.\nВведите имя человека, которому будет назначена фаза (если это применимо к вашему проекту), в ячейке C8.\nУкажите состояние выполнения всей фазы (если это применимо к вашему проекту) в ячейке D8.\nУкажите даны начала и окончания всей фазы (если это применимо к вашему проекту) в ячейках E8 и F8. \nВ диаграмму Ганта будут автоматически добавлены даты и затенение в соответствии с указанным состоянием выполнения.\nЧтобы удалить фазу и работать только с задачами, просто удалите эту строку.","Заголовок фазы 1",{"$nulls":5},{"$f":"IF(OR(ISBLANK(начало_выполнения_задачи),ISBLANK(завершение_выполнения_задачи)),\"\",завершение_выполнения_задачи-начало_выполнения_задачи+1)","v":""}]
["Ячейка B9 содержит пример задачи \"Задача 1\". \nВведите название новой задачи в ячейке B9.\nУкажите человека, которому будет назначена задача, в ячейке C9.\nУкажите состояние выполнения задачи в ячейке D9. В ячейке появится индикатор выполнения, затененный в соответствии с числом в этой ячейке. Например, если указано значение в 50 процентов, будет затенена половина ячейки.\nВведите дату начала задачи в ячейке E9.\nВведите дату завершения задачи в ячейке E9.\nВ блоках ячеек от I9 до BL9 отображается строка состояния для введенных дат. ","Задача 1","Имя",{"v":0.5,"d":"50%"},{"$f":"Начало_проекта","v":"2019-03-29"},{"$f":"E9+3","v":"2019-04-01"},null,4]
["В строках 10–13 повторяется закономерность из строки 9. \nПовторите инструкции из ячейки A9 для всех строк задач на этом листе. Замените все примеры данных.\nПример другой фазы начинается с ячейки A14. \nПродолжайте добавлять задачи в ячейках от A10 до A13 или перейдите к ячейке A14, чтобы узнать больше.","Задача 2",null,{"v":0.6,"d":"60%"},{"$f":"F9","v":"2019-04-01"},{"$f":"E10+2","v":"2019-04-03"},null,3]
[null,"Задача 3",null,{"v":0.5,"d":"50%"},{"$f":"F10","v":"2019-04-03"},{"$f":"E11+4","v":"2019-04-07"},null,5]
[null,"Задача 4",null,{"v":0.25,"d":"25%"},{"$f":"F11","v":"2019-04-07"},{"$f":"E12+5","v":"2019-04-12"},null,6]
[null,"Задача 5",null,null,{"$f":"E10+1","v":"2019-04-02"},{"$f":"E13+2","v":"2019-04-04"},null,3]
["Ячейка справа содержит пример заголовка фазы 2. \nВы можете в любой момент создать фазу в столбце B. В этом расписании проекта не обязательно использовать фазы. Чтобы удалить фазу, просто удалите строку.\nЧтобы создать блок фазы в этой строке, введите новый заголовок в ячейке справа.\nЧтобы продолжить добавлять задачи в представленную выше фазу, добавьте новую строку над этой строкой и укажите данные о задаче, следуя инструкциям из ячейки A9.\nОбновите сведения о фазе в ячейке справа, следуя инструкциям из ячейки A8.\nЧтобы узнать больше, переходите к последующим ячейкам столбца A.\nЕсли на этот лист не добавлялось никаких строк, то вы обнаружите, что в ячейках B20 и B26 были автоматически созданы два дополнительных примера блоков фаз. В противном случае переходите по ячейкам столбца A, чтобы найти дополнительные блоки. \nПо мере необходимости повторяйте инструкции из ячеек A8 и A9.","Заголовок фазы 2",{"$nulls":5},""]
[null,"Задача 1",null,{"v":0.5,"d":"50%"},{"$f":"E13+1","v":"2019-04-03"},{"$f":"E15+4","v":"2019-04-07"},null,5]
[null,"Задача 2",null,{"v":0.5,"d":"50%"},{"$f":"E15+2","v":"2019-04-05"},{"$f":"E16+5","v":"2019-04-10"},null,6]
[null,"Задача 3",null,null,{"$f":"F16","v":"2019-04-10"},{"$f":"E17+3","v":"2019-04-13"},null,4]
[null,"Задача 4",null,null,{"$f":"E17","v":"2019-04-10"},{"$f":"E18+2","v":"2019-04-12"},null,3]
[null,"Задача 5",null,null,{"$f":"E18","v":"2019-04-10"},{"$f":"E19+3","v":"2019-04-13"},null,4]
["Пример блока с заголовком фазы","Заголовок фазы 3",{"$nulls":5},""]
[null,"Задача 1",null,null,{"$f":"E9+15","v":"2019-04-13"},{"$f":"E21+5","v":"2019-04-18"},null,6]
[null,"Задача 2",null,null,{"$f":"F21+1","v":"2019-04-19"},{"$f":"E22+4","v":"2019-04-23"},null,5]
[null,"Задача 3",null,null,{"$f":"E22+5","v":"2019-04-24"},{"$f":"E23+5","v":"2019-04-29"},null,6]
[null,"Задача 4",null,null,{"$f":"F23+1","v":"2019-04-30"},{"$f":"E24+4","v":"2019-05-04"},null,5]
[null,"Задача 5",null,null,{"$f":"E23","v":"2019-04-24"},{"$f":"E25+4","v":"2019-04-28"},null,5]
["Пример блока с заголовком фазы","Заголовок фазы 4",{"$nulls":5},""]
[null,"Задача 1",null,null,"Дата","Дата",null,{"$error":"#VALUE!"}]
[null,"Задача 2",null,null,"Дата","Дата",null,{"$error":"#VALUE!"}]
[null,"Задача 3",null,null,"Дата","Дата",null,{"$error":"#VALUE!"}]
[null,"Задача 4",null,null,"Дата","Дата",null,{"$error":"#VALUE!"}]
[null,"Задача 5",null,null,"Дата","Дата",null,{"$error":"#VALUE!"}]
["Это пустая строка.",{"$nulls":6},""]
["Эта строка обозначает окончание расписание проекта. НЕ вводите ничего в этой строке. \nВставляйте новые строки НАД этой, чтобы продолжить составлять расписание проекта.","Вставляйте новые строки НАД этой.",{"$nulls":5},""]

{"sheet":"Сведения","index":1,"n_rows":16,"n_cols":1,"rows_kept":16}
[]
["ПРОСТАЯ ДИАГРАММА ГАНТА от Vertex42.com"]
["https://www.vertex42.com/ExcelTemplates/simple-gantt-chart.html"]
["Об этом шаблоне"]
["Этот шаблон помогает создать диаграмму Ганта для наглядного представления и отслеживания проекта. Просто добавьте задачи и введите даты начала и завершения. Никаких формул не требуется. Столбцы диаграммы Ганта представляют продолжительность задачи и отображаются с использованием условного форматирования. Чтобы добавлять задачи, вставляйте новые строки."]
["Инструкции для средств чтения с экрана"]
["Эта книга состоит из двух листов. \n\nРасписаниеПроекта\nСведения\n\nИнструкции для соответствующего листа находятся на каждом листе в столбце A начиная с ячейки A1. Они представлены в виде скрытого текста. Инструкция для каждого шага находится в соответствующей строке. Последующие шаги описаны в ячейках A2, A3 и т. д., если явно не указано иное. Например, в инструкциях может быть сказано «Далее см. ячейку A6». \n\nСкрытый текст не выводится на печать.\n\nЧтобы убрать эти инструкции с листа, просто удалите столбец A."]
["Дополнительная справка"]
["Перейдите по приведенной ниже ссылке, чтобы посетить сайт vertex42.com и узнать больше о том, как использовать этот шаблон, например как считать дни недели и рабочие дни, создавать зависимости задач, менять цвета полос, добавить полосу прокрутки для легкого изменения отображаемой недели, расширять диапазон дат, отображаемый в диаграмме, и т. д."]
["Как использовать простую диаграмму Ганта"]
["Дополнительные шаблоны для управления проектами"]
["Посетите сайт Vertex42.com, чтобы скачать шаблоны для управления проектами, в том числе различные расписания проектов, диаграммы Ганта, списки задач и т. д."]
["Шаблоны для управления проектами"]
["О компании Vertex42"]
["Vertex42.com предлагает свыше 300 профессионально оформленных шаблонов книг для дома, бизнеса и образования. Большинство из них можно скачать бесплатно. В коллекцию шаблонов входят разнообразные календари, планировщики и расписания, а также средства учета личных финансов для составления бюджета, сокращения задолженности и погашения кредита."]
["Для предприятий предлагаются шаблоны счетов, табелей учета рабочего времени, журналов учета запасов, финансовых отчетов и планов проектов. Преподавателей и учащихся порадуют такие ресурсы, как расписания занятий, дневники и журналы учета посещаемости. Для организации домашнего быта используйте планировщики питания, контрольные списки и журналы тренировок. Каждый шаблон внимательно изучается, уточняется и со временем совершенствуется благодаря отзывам тысяч пользователей."]